Workbook

Sheet BOQ Summary (hidden)
A1: ='P&G - Section 1'!A1 -> UMKHANYAKUDE DISTRICT MUNICIPALITY
A2: ='P&G - Section 1'!A2 -> NONDABUYA WSS PHASES 2 & 3
A3: ='P&G - Section 1'!A3 -> CONTRACT No.:
A5: SUMMARY OF SECTIONS
A7: SECTION | B7: DESCRIPTION | C7: AMOUNT (RAND)
D9: Tendered | E9: Varience
A12: 1 | B12: ='P&G - Section 1'!G5 -> SECTION 1: PRELIMINARY AND GENERAL | C12: ='P&G - Section 1'!G168 -> 0 | D12: R2,927,200.00 | E12: =C12-D12 -> -R2,927,200.00
E13: =C13-D13 -> 0
A14: 2 | B14: ='Site Clearance - Section 2'!G5 -> SECTION 2 : SITE CLEARANCE | C14: ='Site Clearance - Section 2'!G39 -> 0 | D14: R469,625.00 | E14: -R469,625.00
E15: 0
A16: 3 | B16: ='Earthworks - Section 3'!G5 -> SECTION 3 : EARTHWORKS | C16: ='Earthworks - Section 3'!G86 -> 0 | D16: R5,593,657.98 | E16: -R5,593,657.98
E17: 0
A18: 4 | B18: ='Bedding - Section 4'!G5 -> SECTION 4 : BEDDING | C18: ='Bedding - Section 4'!G50 -> 0 | D18: R2,097,070.12 | E18: -R2,097,070.12
E19: 0
A20: 5 | B20: ='Medium Pressure - Section 5'!G5 -> SECTION 5 : MEDIUM PRESSURE PIPELINES | C20: ='Medium Pressure - Section 5'!G54 -> 0 | D20: R7,189,956.00 | E20: -R7,189,956.00
E21: 0
A22: 6 | B22: ='Pipe Fittings - Section 6'!G5 -> SECTION 6 : PIPE FITTINGS AND SPECIALS | C22: ='Pipe Fittings - Section 6'!G171 -> 0 | D22: R938,549.29 | E22: -R938,549.29
E23: 0
A24: 7 | B24: ='Valves - Section 7'!G5 -> SECTION 7 : VALVES AND CHAMBERS | C24: ='Valves - Section 7'!G50 -> 0 | D24: R1,403,556.34 | E24: -R1,403,556.34
E25: 0
A26: 8 | B26: ='Pumpstations - Section 8'!G5 -> SECTION 8 : PUMP STATIONS | C26: ='Pumpstations - Section 8'!G19 -> 0 | D26: R7,255,250.00 | E26: -R7,255,250.00
E27: 0
A28: 9 | B28: ='Tanks - Section 9'!G5 -> SECTION 9 : PREFABRICATED STEEL TANKS | C28: ='Tanks - Section 9'!G51 -> 0 | D28: R4,539,325.30 | E28: -R4,539,325.30
A29: 10 | B29: A SUB-TOTAL | C29: =SUM(C11:C28)-0.001 -> R(0.00) | D29: =SUM(D12:D28) -> R32,414,190.03 | E29: =C29-0.0001 -> -R0.00
A30: 11 | B30: B CONTINGENCIES (Add 5% of Sub-Total C) | C30: =C29*5% -> R(0.00)
A31: 12 | B31: C SUB-TOTAL (A+B) | C31: =SUM(C29:C30) -> R(0.00)
A32: 13 | B32: D VALUE ADDED TAX (Add 15 % of Sub-Total E) | C32: =0.15*C31 -> R(0.00)
A33: 14 | B33: E TOTAL CARRIED TO FORM OF OFFER AND ACCEPTANCE (E+F) | C33: =C32+C31 -> R(0.00)
C35: R32,414,190.03
B36: Diff | C36: =C29-C35 -> -R32,414,190.03

Sheet SUMMARY
A1: ='P&G - Section 1'!A1 -> UMKHANYAKUDE DISTRICT MUNICIPALITY
A2: ='P&G - Section 1'!A2 -> NONDABUYA WSS PHASES 2 & 3
A3: ='P&G - Section 1'!A3 -> CONTRACT No.:
A5: SUMMARY OF SECTIONS
A6: SECTION | B6: DESCRIPTION | C6: ESTIMATE AMOUNT (PHASE 2) | D6: ESTIMATE AMOUNT (PHASE 3) | E6: AMOUNT
A7: 1 | B7: ='P&G - Section 1'!G5 -> SECTION 1: PRELIMINARY AND GENERAL | C7: ='P&G - Section 1'!#REF! ->  | D7: ='P&G - Section 1'!#REF! -> 
A8: 2 | B8: ='Site Clearance - Section 2'!G5 -> SECTION 2 : SITE CLEARANCE | C8: ='Site Clearance - Section 2'!#REF! ->  | D8: ='Site Clearance - Section 2'!#REF! -> 
A9: 3 | B9: ='Earthworks - Section 3'!G5 -> SECTION 3 : EARTHWORKS | C9: ='Earthworks - Section 3'!#REF! ->  | D9: ='Earthworks - Section 3'!#REF! -> 
A10: 4 | B10: ='Bedding - Section 4'!G5 -> SECTION 4 : BEDDING | C10: ='Bedding - Section 4'!#REF! ->  | D10: ='Bedding - Section 4'!#REF! -> 
A11: 5 | B11: ='Medium Pressure - Section 5'!G5 -> SECTION 5 : MEDIUM PRESSURE PIPELINES | C11: ='Medium Pressure - Section 5'!#REF! ->  | D11: ='Medium Pressure - Section 5'!#REF! -> 
A12: 6 | B12: ='Pipe Fittings - Section 6'!G5 -> SECTION 6 : PIPE FITTINGS AND SPECIALS | C12: ='Pipe Fittings - Section 6'!#REF! ->  | D12: ='Pipe Fittings - Section 6'!#REF! -> 
A13: 7 | B13: ='Valves - Section 7'!G5 -> SECTION 7 : VALVES AND CHAMBERS | C13: ='Valves - Section 7'!#REF! ->  | D13: ='Valves - Section 7'!#REF! -> 
A14: 8 | B14: ='Pumpstations - Section 8'!G5 -> SECTION 8 : PUMP STATIONS | C14: ='Pumpstations - Section 8'!#REF! ->  | D14: ='Pumpstations - Section 8'!#REF! -> 
A15: 9 | B15: ='Tanks - Section 9'!G5 -> SECTION 9 : PREFABRICATED STEEL TANKS | C15: ='Tanks - Section 9'!#REF! ->  | D15: ='Tanks - Section 9'!#REF! -> 
A16: 10 | B16: SUB-TOTAL (A) | C16: =SUM(C7:C15) ->  | D16: =SUM(D7:D15) -> 
A17: 11 | B17: Add: Contingencies @ 5% | C17: =C16*0.05 ->  | D17: =D16*0.05 -> 
A18: 12 | B18: SUB-TOTAL (B): DIRECT COSTS - CONSTRUCTION | C18: =SUM(C16:C17) ->  | D18: =SUM(D16:D17) -> 
A19: 13 | B19: Add - 15% VAT | C19: =#REF!*0.15 ->  | D19: =#REF!*0.15 -> 
A20: 14 | B20: TOTALS CARRIED TO FORM OF TENDER | C20: =#REF!+C19 ->  | D20: =#REF!+D19 ->  | F20: =87000000*1.2 -> R104,400,000.00
B22: % of P&Gs | C22: =C7/C16 ->  | D22: =D7/D16 ->  | E22: =E7/E16 -> 

Sheet P&G - Section 1
A1: UMKHANYAKUDE DISTRICT MUNICIPALITY
A2: NONDABUYA WSS PHASES 2 & 3
A3: CONTRACT No.: | B3: SCMU 001/2026/2027
G5: SECTION 1: PRELIMINARY AND GENERAL
A7: ITEM | B7: PAYMENT | C7: DESCRIPTION | D7: UNIT | E7: QUANTITY | F7: RATE | G7: AMOUNT
A9: 1 | B9: SANS 1200 A | C9: PRELIMINARY AND GENERAL
A11: 1.1 | B11: 8.3 | C11: Scheduled Fixed-Charge and Value-Related Items
A13: 1.1.1 | B13: 8.3.1 | C13: Contractual Requirements | D13: Sum | E13: 1
C15: Provision for the site facilities:
A17: 1.1.2 | B17: 8.3.2.1 | C17: a) Facilities for the Engineer
A19: 1.1,3 | C19: Survey equipment | D19: Sum | E19: 1
A21: 1.1.4 | C21: Resident Engineer : Provision of data for site purposes | D21: Sum | E21: 1
A23: 1.1.5 | C23: As-built data collection by profesional surveyor | D23: Sum | E23: 1
A25: 1.1.6 | C25: 2 x Name Boards (as per drawing) | D25: Sum | E25: 4
A27: 1.1.7 | B27: 8.3.2.2 | C27: b) Facilities for the Contractor
A29: 1.1.8 | C29: Supply and erection of 2 x Parkhome offices (6mx3m open plan Bolt Modular Parkhome or similar, as approved by the Engineer), storage sheds, workshops, ablution and latrine facilities, tools and equipment, water supplies, electric power, communications, access and fencing (The office to have at least two work stations of a table and three chairs each) | D29: Sum | E29: 2
A30: 1.1.9 | C30: Dealing with water generally on site and at river crossings | D30: Sum | E30: 1
A32: 1.1.10 | B32: 8.3.4 | C32: Removal of site establishment on completion of the project | D32: Sum | E32: 2
A34: 1.1.11 | C34: Accommodation of traffic and road crossings | D34: Sum | E34: 1
A36: 1.1.12 | C36: As built drawings and operating and maintenance manuals | D36: Sum | E36: 1
A38: 1.1.13 | C38: Provision of access to properties during construction | D38: Sum | E38: 1
A40: 1.1.14 | B40: PSA | C40: Compliance with the OHS Act regulations (Rate to include for risk assessment specific to the COVID-19 Ependemic and other adjustments to ensure compliance for the assignment including maintenance of a register for workers contacts, Provision of PPE & other H&S matters) | D40: Sum | E40: 1
A41: 1.1.16 | C41: Preparation of a OHS Plan | D41: Sum | E41: 1
C43: Costs of medical certificate and Medical Surveillance including Screenings for Employees with COVID-19Symptoms
A45: 1.1.17 | C45: Allowance for Health and Safety Officer (24 Months) | D45: Sum | E45: 1
A47: Carried Forward
A48: ITEM | B48: PAYMENT | C48: DESCRIPTION | D48: UNIT | E48: QUANTITY | F48: RATE | G48: AMOUNT
A49: Brought Forward
A51: 1.2 | B51: 8.4 | C51: SCHEDULED TIME-RELATED ITEMS
A53: 1.2.1 | B53: 8.4.1 | C53: Contractual requirements and operating and maintaining facilities on site
B55: 8.4.2 | C55: Facilities for the Engineer-
A57: 1.2.2 | C57: a) Nameboards (2No) (Refer to Drawing) | D57: No. | E57: 18
A59: 1.2.3 | C59: b) Survey assistants and materials | D59: No. | E59: 18
A61: 1.2.5 | B61: 8.4.3 | C61: Facilities for the Contractor-
A63: 1.2.6 | C63: Offices, storage sheds, workshops, living accommodation, ablution and latrine facilities, tools and equipment, water supplies, electric power, communications, access and plant | D63: No | E63: 18
A65: 1.2.7 | C65: Dealing with water generally on site and at river crossings | D65: No | E65: 18
A67: 1.2.8 | C67: Accommodation of traffic and road crossings | D67: No | E67: 18
A69: 1.2.9 | C69: Provision of access to properties during construction | D69: No | E69: 18
A71: 1.2.10 | B71: 8.4.6 | C71: Updating and amending the risk assessments, safe work procedures, the project H&S File, the H&S plan, the provision of PPE and protective clothing and any other H&S matters that the contractor deems necessary | D71: No | E71: 18
A73: 1.2.11 | C73: Allowance for Health and Safety Officer (24 Months) | D73: No | E73: 18
A75: 1.2.12 | B75: 8.4.4 | C75: Supervision for duration of construction | D75: No | E75: 18
A77: 1.2.13 | B77: 8.4.5 | C77: Company and head office overhead costs for the duration of the contract | D77: No | E77: 18
A79: 1.2.14 | C79: 24-hour security/ watchmen/woman on site | D79: No | E79: 18
A81: 1.3 | C81: SUMS STATED PROVISIONALLY BY THE ENGINEER
A83: 1.3.1 | B83: PSA3 | C83: Employment of CLO for the duration of the Contract (R14500 pm plus R500 pm cellphone allowance) over 20 months | D83: Prov. Sum | E83: 1 | F83: R300,000.00 | G83: R300,000.00
A85: 1.3.2 | C85: Contractors markup on item 1.3.1 | D85: % | E85: R300,000.00
A87: 1.3.3 | C87: Payment of PSC members for attendance of meetings for the duration of the contract (8 No members per Ward over the five (5) Wards at R750 per member per meeting) over 12 months (Contractor's programme to ensure that no work within a ward exceeds 12-months) | D87: Prov. Sum | E87: 1 | F87: R360,000.00 | G87: R360,000.00
A89: 1.3.4 | C89: Contractors markup on item 1.3.3 | D89: % | E89: R360,000.00
A91: Carried Forward
A92: ITEM | B92: PAYMENT | C92: DESCRIPTION | D92: UNIT | E92: QUANTITY | F92: RATE | G92: AMOUNT
A93: Brought Forward
A95: 1.3.5 | C95: Empowerment of local personnel through skills development and skills transfer by an accredited trainer/service provider to be appointed or nominated by client. | D95: Prov Sum | E95: 1 | F95: R70,000.00 | G95: R70,000.00
A97: 1.3.6 | C97: Contractors markup on item 1.3.5 | D97: % | E97: R70,000.00
A99: 1.3.7 | C99: Provisional sum for conforming with the requirements of EPWP | D99: Prov Sum | E99: 1 | F99: R48,000.00 | G99: R48,000.00
A101: 1.3.8 | C101: Contractors markup on item 1.3.7 | D101: % | E101: R48,000.00
A103: 1.3.9 | C103: Additional tests ordered by the Engineer | D103: Prov Sum | E103: 1 | F103: R100,000.00 | G103: R100,000.00
A105: 1.3.10 | C105: Contractors markup on item 1.3.9 | D105: % | E105: R100,000.00
A107: 1.3.11 | C107: Allow provisional sum for Water Treatment Works Process Engineer Specialist appointed by the Engineer | D107: Prov Sum | E107: 1 | F107: R150,000.00 | G107: R150,000.00
A109: 1.3.12 | C109: Contractors markup on item 1.3.11 | D109: % | E109: R150,000.00
A111: 1.3.13 | C111: Allow provisional sum for Electromechanical Specialist appointed by the Engineer | D111: Prov Sum | E111: 1 | F111: R250,000.00 | G111: R250,000.00
A113: 1.3.14 | C113: Contractors markup on item 1.3.13 | D113: % | E113: R250,000.00
A115: 1.3.15 | C115: Allow provisional sum for environmental rehabilitation at specific locations by a selected sub contractor | D115: Prov Sum | E115: 1 | F115: R70,000.00 | G115: R70,000.00
A117: 1.3.16 | C117: Contractors markup on item 1.3.15 | D117: % | E117: R70,000.00
A119: 1.3.17 | C119: Provisional Sum for the provision of adequately armed security personnel together with 4x2 vehicle - Sourced and dedicated to the Engineer and paid for by the Contractor through the Engineer over 20 months | D119: Prov Sum | E119: 1 | F119: R451,100.00 | G119: R451,100.00
A121: 1.3.18 | C121: Contractors markup on item 1.3.17 | D121: % | E121: R451,100.00
A123: 1.3.19 | C123: Allowance for removal and disposal of existing works complete and make good as directed by engineer | D123: Prov Sum | E123: 1 | F123: R50,000.00 | G123: R50,000.00
A125: 1.3.20 | C125: Contractors markup on item 1.3.19 | D125: % | E125: R50,000.00
A127: 1.3.21 | C127: Allowance for water testing of pipelines complete and make good as directed by engineer (2 fillings) | D127: Prov Sum | E127: 1 | F127: R100,000.00 | G127: R100,000.00
A128: Carried Forward
A129: ITEM | B129: PAYMENT | C129: DESCRIPTION | D129: UNIT | E129: QUANTITY | F129: RATE | G129: AMOUNT
A130: Brought Forward
A132: 1.3.22 | C132: Contractors markup on item 1.3.21 | D132: % | E132: R100,000.00
A134: 1.3.23 | C134: Allowance for compensating landowners for crop damage due to construction | D134: Prov Sum | E134: 1 | F134: R100,000.00 | G134: R100,000.00
A136: 1.3.24 | C136: Contractors markup on item 1.3.23 | D136: % | E136: R100,000.00
C138: Temporary Works
A140: 1.3.33 | C140: Maintain all roads where construction activities will take place | D140: Prov. Sum | E140: 1 | F140: R200,000.00 | G140: R200,000.00
A142: 1.3.34 | C142: Contractors markup on item 1.3.33 | D142: % | E142: R200,000.00
A144: 1.4 | B144: 8.7 | C144: Dayworks
A146: 1.4.1 | C146: Foreman | D146: hr | E146: 60
A148: 1.4.2 | C148: Skilled | D148: hr | E148: 60
A150: 1.4.3 | C150: Semi-skilled | D150: hr | E150: 100
A151: .
A152: 1.4.4 | C152: Unskilled | D152: hr | E152: 100
B154: 8.7 | C154: Plant
C156: T L B | D156: hr | E156: 60
C158: Light Delivery Vehicle (1t or equialent) | D158: hr | E158: 60
C160: 10Ton crane truck | D160: hr | E160: 60
C162: Generator set | D162: hr | E162: 60
C164: Plate compactor | D164: hr | E164: 60
A168: Total Carried Forward To Summary

Sheet Site Clearance - Section 2
A1: UMKHANYAKUDE DISTRICT MUNICIPALITY
A2: NONDABUYA WSS
A3: CONTRACT No.: | B3: SCMU 001/2026/2027
G5: SECTION 2 : SITE CLEARANCE
A7: ITEM | B7: PAYMENT | C7: DESCRIPTION | D7: UNIT | E7: QUANTITY | F7: RATE | G7: AMOUNT
A9: 2 | B9: SANS 1200 C & PSC | C9: SITE CLEARANCE
A11: 2.1 | C11: CLEAR SITE
A13: 2.1.1 | B13: 8.2.1 | C13: Clear and grub vegetation in strip 2m wide on pipe route. Rate to include for trees of girth up to and including 1m. | D13: m | E13: 160444
A15: 2.1.2 | B15: 8.2.2 | C15: Where instructed remove and grub large trees and tree stumps of girth:
A17: 2.1.2.1 | B17: 8.2.2(a) | C17: over 1m and up to 2m. | D17: No | E17: 60
A20: 2.1.3 | C20: Excavation of trial holes 1,0 m x 1,0 m x 0,8 m deep as ordered | D20: No | E20: 40
A22: 2.1.4 | C22: Remove and reinstate fences parallel to pipeline (fences comprising up to 3 strands wire/barbed wire or disjointed timber slats to be included in the normal rate for excavation) | D22: m | E22: 2000
A24: 2.1.5 | B24: PSC 8.2.13 | C24: Remove existing gravel layer works to stockpile and maintain (for use as selected layers) as instructed by the Engineer.
A26: 2.1.5.1 | C26: Gravel layer works to District Roads. | D26: m³ | E26: 560
A28: 2.1.5.2 | C28: Fill material | D28: m³ | E28: 0
A30: 2.1.5.3 | C30: Relocation of existing fences | D30: m | E30: 4000
A32: 2.1.5.4 | C32: Working adjacent to existing services (stormwater pipes, stormwater v-drains, water pipes and electricaL and telecommunication services) | D32: m | E32: 300
A34: 2.1.5.5 | C34: Working parallel to existing services (stormwater pipes, stormwater v-drains, water pipes and electrica and telecommunication services) | D34: No | E34: 40
A39: Total Carried Forward To Summary

Sheet Earthworks - Section 3
A1: UMGENI - UTHUKELA WATER
A2: NONDABUYA WSS
A3: CONTRACT No.: | B3: SCMU 001/2026/2027
G5: SECTION 3 : EARTHWORKS
A7: ITEM | B7: PAYMENT | C7: DESCRIPTION | D7: UNIT | E7: QUANTITY | F7: RATE | G7: AMOUNT
A8: 3 | B8: SANS 1200 D & 200 DB | C8: PIPE TRENCHES, MINOR EARTHWORKS & TRENCHES
A10: 3.1 | B10: PSDB 8.3.2 | C10: Excavation
A11: 3.1.1 | B11: 8.3.2(a) | C11: Excavate in all materials for trenches, backfill, compact, and dispose of surplus/unsuitable material for pipes:
C13: Excavate by hand in confined areas for pipe trenches or to locate and expose existing services where ordered by the Engineer
A15: 3.1.1.1 | C15: Up to and including 200mm ND for total trench depth:
A17: 3.1.1.1.1 | C17: Exceeding 0,0m but not exceeding 1.5m | D17: m³
A19: 3.1.1.1.2 | C19: Extra over item for 3.1.1.1.1 for Intermediate rock | D19: m³
A21: 3.1.1.1.3 | C21: Extra over item for 3.1.1.1.1 for hard rock | D21: m³
A23: 3.1.1.1.4 | C23: Extra over item for 3.1.1.1.1 for bolder excavation | D23: m³
A25: 3.2 | C25: Slope Protection (Provisional)
A27: 3.2.1 | C27: Earth diversion berms as instructed by the Engineer | D27: No | E27: 30
A29: 3.3 | C29: Excavate in all materials beyond the limits of pipe trenches for thrust walls, valve chambers, anchor blocks where ordered by the Engineer:
C31: Over and up to
A33: 3.3.1 | C33: 0,0 m 1,0 m | D33: m³ | E33: 18
A35: 3.3.2 | C35: 1,0 m 1,5 m | D35: m³ | E35: 21
A37: 3.4 | B37: SABS 1200DK | C37: Gabions and Pitching
A39: 3.4.1 | B39: 8.2.1 (a) | C39: Surface preparation - cavities filled with excavated material | D39: m² | E39: 24
A41: 3.4.2 | B41: 8.2.2 | C41: Gabions:
A43: 3.4.2.1 | C43: 2 m x 1 m x 1 m boxes | D43: m³ | E43: 10
A45: 3.4.2.2 | C45: 2 m x 2 m x 0,23 m boxes | D45: m³ | E45: 10
A47: 3.4.2.3 | B47: 8.2.4 | C47: Geotexile where ordered | D47: m² | E47: 40
A49: 3.4.2.4 | B49: 8.2.5 | C49: Ordinary stone pitching | D49: m² | E49: 40
A52: Carried Forward
A53: ITEM | B53: PAYMENT | C53: DESCRIPTION | D53: UNIT | E53: QUANTITY | F53: RATE | G53: AMOUNT
A54: Brought Forward
A55: 3.5 | B55: 8.2.5 (a) | C55: Services that Intersect a Trench:
A57: 3.5.1 | C57: Stormwater pipes up to 450 mm dia | D57: Nº | E57: 6
A58: 3.6 | C58: Telkom and electric cables (underground) (no additional payment will be made for overhead telephone lines or poles) | D58: Nº | E58: 6
A60: 3.7 | B60: 8.3.5 (b) | C60: Services that adjoin a trench:
A62: 3.7.1 | C62: Stormwater pipes up to 450 mm dia | D62: m | E62: 100
C64: Telkom cables (underground) (no additional payment will be made for overhead telephone lines or poles) | D64: m | E64: 200
B66: 8.3.5 | C66: EO Items B.3.3 for excavating, backfilling, compacting and reinstating trenches parallel to and within 1,0 m from: (rates to incl. for reinstating if damaged in any way by the Contractor):
C68: Wire fences | D68: m | E68: 400
C70: EO Items B.3.3 for excavating, backfilling, compacting and reinstating trenches crossing beneath (rates to incl. for reinstating if damaged in any way by the Contractor):
C72: Wire fences | D72: Nº | E72: 40
C74: Excavation across gravel roads
C76: Selective excavation in all materials for trenches, backfill with stabilised 5% cement, compact and dispose of surplus material for trenches under gravel roads for pipes up to 300mm diameter (only one half of the road is to be opened at any one time)
C78: 1,5m - 2.0m | D78: m | E78: 240
A86: Total Carried Forward To Summary

Sheet Bedding - Section 4
A1: UMGENI - UTHUKELA WATER
A2: NONDABUYA WSS
A3: CONTRACT No.: | B3: SCMU 001/2026/2027
G5: SECTION 4 : BEDDING
A7: ITEM | B7: PAYMENT | C7: DESCRIPTION | D7: UNIT | E7: QUANTITY | F7: RATE | G7: AMOUNT
A9: 4 | B9: SANS 1200 LB & PS LB | C9: BEDDING
A11: 4.1 | B11: 8.2.1 & PS LB 3.1 | C11: Provision of Bedding from Trench Excavation
A13: 4.1.1 | B13: 8.2.1 (a) | C13: Selected granular material | D13: m³ | E13: 15727
A15: 4.1.2 | B15: 8.2.1 (b) | C15: Selected fill material | D15: m³ | E15: 15727
A17: 4.2 | B17: 8.2.2 | C17: Supply only of Bedding by Importation
A19: 4.2.1 | B19: 8.2.2.1 | C19: From other necessary excavations
C20: (Provisional)
A22: 4.2.1.1 | B22: 8.2.2.1 (a) | C22: Selected granular material | D22: m³ | E22: 7863.6
A24: 4.2.1.2 | B24: 8.2.2.1 (b) | C24: Selected fill material | D24: m³ | E24: 7863.6
A26: 4.2.2 | B26: 8.2.2.3 | C26: From Commercial sources
A28: 4.2.2.1 | B28: 8.2.2.3 (a) | C28: Selected granular material | D28: m³ | E28: 2621.2
A30: 4.2.2.2 | B30: 8.2.2.3 (b) | C30: Selected fill material | D30: m³ | E30: 2621.2
A32: 4.3 | B32: 8.2.3 | C32: Concrete Bedding Cradle (Provisional)
A34: 4.3.1 | C34: 15/19 Grade concrete | D34: m³ | E34: 0.0
A36: 4.4 | B36: 8.2.4 | C36: Encasing of Pipes in Concrete (Provisional)
A38: 4.4.1 | C38: Encasement of Pipe in 25/19 Grade concrete including all formwork and reinforcement (100kg steel per m3 conctrete) for water crossings and road crossings. Refer to standard detail | D38: m³ | E38: 10
A40: 4.5 | B40: 8.2.4 | C40: Thrust Blocks
A42: 4.5.1 | C42: Construct thrust blocks in 25/19 Grade concrete including all preparation work and formwork required. Refer to standard detail | D42: m³ | E42: 75
A44: 4.6 | B44: 8.2.5 | C44: Overhaul of Material for Bedding Cradle and Selected Fill Blanket (Provisional) | D44: m³/km | E44: 3000
A50: Total Carried Forward To Summary

Sheet Medium Pressure - Section 5
A1: UMGENI - UTHUKELA WATER
A2: NONDABUYA WSS
A3: CONTRACT No.: | B3: SCMU 001/2026/2027
G5: SECTION 5 : MEDIUM PRESSURE PIPELINES
A7: ITEM | B7: PAYMENT | C7: DESCRIPTION | D7: UNIT | E7: QUANTITY | F7: RATE | G7: AMOUNT
A8: 5 | B8: SANS 1200 L | C8: MEDIUM PRESSURE PIPELINES
A10: 5.1 | B10: 8.2.1 | C10: Supply, lay, backfill, disinfect, join and test potable water pipelines. All works inclusive in the rate, except where specific items are provided. All activites in accordance with project specifications.:
C12: HDPE Pipes
L13: Dia. | M13: Ph 2 | N13: Ph 3
A14: 5.1.1 | C14: 25mm dia. PN 12 | D14: m | E14: 305737 | L14: 50 | M14: 40283 | N14: 52672
L15: 63 | M15: 6229 | N15: 7418
A16: 5.1.2 | C16: 50 mm dia. PN 12 | D16: m | E16: 97603 | L16: 75 | M16: 2793 | N16: 6940
L17: 90 | M17: 3274 | N17: 9296
A18: 5.1.3 | C18: 63 mm dia. PN 12 | D18: m | E18: 14,329 | L18: 110 | M18: 1883 | N18: 8436
L19: 160 | M19: 7882 | N19: 5698
A20: 5.1.4 | C20: 75 mm dia. PN 12 | D20: m | E20: 10,219 | L20: 200 | M20: 0 | N20: 68
L21: 300 | M21: 0 | N21: 0
A22: 5.1.5 | C22: 90 mm dia. PN 12 | D22: m | E22: 13,199 | M22: 62344.86607 | N22: 90527.75067
C24: PVC-U Pipes
A27: 5.1.6 | C27: 110mm dia. CL 12 uPVC | D27: m | E27: 10,834
A29: 5.1.7 | C29: 160mm dia. CL 12 uPVC | D29: m | E29: 14,260
A31: 5.2 | B31: PSL 8.2.16 | C31: Pipeline Markers as per standard detail. Work to be executed by a nominated SMME sub contractor | D31: No | E31: 1765
A33: 5.3.1 | C33: Supply and install standpipe as per drawing UKDM-0056-08complete including HDPE saddle, 32mm HDPE pipe (20m), tap and galvanised riser pipe, concrete work including shuttering, elbows, nipples, etc, as per standard drawings. Work to be executed by a nominated SMME sub contractor | D33: No | E33: 4706
A35: 5.4 | C35: Thrust Blocks
A37: 5.4.1 | C37: Construct anchor/thrust blocks to Drawing No. UKDM-0057-01
C38: For tees, end caps and 90 degree bends:
A40: 5.4.1.1 | C40: 50mm Diameter | D40: No | E40: 18
A42: 5.4.1.2 | C42: 63mm Diameter | D42: No | E42: 38
A44: 5.4.1.3 | C44: 75mm Diameter | D44: No | E44: 14
A46: 5.4.1.4 | C46: 90mm Diameter | D46: No | E46: 30
A49: 5.4.1.5 | C49: 110mm Diameter | D49: No | E49: 18
A51: 5.4.1.6 | C51: 160mm Diameter | D51: No | E51: 16
A53: 5.4.1.7 | C53: 200mm Diameter | D53: No | E53: 3
A54: Total Carried Forward To Summary

Sheet Pipe Fittings - Section 6
A1: UMGENI - UTHUKELA WATER
A2: NONDABUYA WSS
A3: CONTRACT No.: | B3: SCMU 001/2026/2027
G5: SECTION 6 : PIPE FITTINGS AND SPECIALS
A7: ITEM | B7: PAYMENT | C7: DESCRIPTION | D7: UNIT | E7: QUANTITY | F7: RATE | G7: AMOUNT
B8: SANS 1200 L | C8: PIPE FITTINGS AND SPECIALS
B10: 8.2.2 PSL 8.2.4 PSL 8.2.5 | C10: Extra-over 8.2.1 for the Supplying, Laying and Bedding of Specials complete with Couplings as follows:-
A12: 5.2 | B12: 8.2.4 PSL 8.2.6 | C12: Supply, lay, joint and bed including cutting pipes where required for the following:
C14: HDPE Pipe Bends (PN 16)
A16: 5.2.1 | C16: 50mm dia. x 22.5° bends. | D16: No. | E16: 87
A18: 5.2.2 | C18: 50mm dia. x 45° bends. | D18: No. | E18: 77
A20: 5.2.3 | C20: 50mm dia. x 90° bends. | D20: No. | E20: 113
A22: 5.2.4 | C22: 63mm dia. x 22.5° bends. | D22: No. | E22: 9
A24: 5.2.5 | C24: 63mm dia. x 45° bends. | D24: No. | E24: 12
A26: 5.2.6 | C26: 63mm dia. x 90° bends. | D26: No. | E26: 29
A28: 5.2.7 | C28: 75mm dia. x 22.5° bends. | D28: No. | E28: 30
A30: 5.2.8 | C30: 75mm dia. x 45° bends. | D30: No. | E30: 50
A32: 5.2.9 | C32: 75mm dia. x 90° bends. | D32: No. | E32: 0
A34: 5.2.10 | C34: 90mm dia. x 22.5° bends. | D34: No. | E34: 46
A36: 5.2.11 | C36: 90mm dia. x 45° bends. | D36: No. | E36: 32
A38: 5.2.12 | C38: 90mm dia. x 90° bends. | D38: No. | E38: 8
C40: uPVC Pipe Bends (PN 16)
A42: 5.2.13 | C42: 110mm dia. x 22.5° bends. | D42: No. | E42: 8
A44: 5.2.14 | C44: 110mm dia. x 45° bends. | D44: No. | E44: 11
A46: 5.2.13 | C46: 110mm dia. x 90° bends. | D46: No. | E46: 27
A48: 5.2.14 | C48: 160mm dia. x 22.5° bends. | D48: No. | E48: 2
A50: 5.2.15 | C50: 160mm dia. x 45° bends. | D50: No. | E50: 19
A52: 5.2.16 | C52: 160mm dia. x 90° bends. | D52: No. | E52: 15
A54: 5.2.17 | C54: 200mm dia. x 22.5° bends. | D54: No. | E54: 7
A56: 5.2.18 | C56: 200mm dia. x 45° bends. | D56: No. | E56: 8
A58: 5.2.19 | C58: 300mm dia. x 22.5° bends. | D58: No. | E58: 8
A60: 5.2.20 | C60: 300mm dia. x 45° bends. | D60: No. | E60: 8
A62: 5.2.20a | C62: 300mm dia. x 90° bends. | D62: No. | E62: 8
A64: Carried Forward
A65: ITEM | B65: PAYMENT | C65: DESCRIPTION | D65: UNIT | E65: QUANTITY | F65: RATE | G65: AMOUNT
A66: Brought Forward
C68: Socketed Reducers (PN16)
A70: 5.2.21 | C70: 63mm x 50mm | D70: No. | E70: 50
A72: 5.2.22 | C72: 75mm x 50 mm | D72: No. | E72: 6
A74: 5.2.23 | C74: 75mm x 63mm | D74: No. | E74: 8
A76: 5.2.24 | C76: 90mm x 50mm | D76: No. | E76: 10
A78: 5.2.25 | C78: 90mm x 63 mm | D78: No. | E78: 24
A80: 5.2.26 | C80: 90mm x 75mm | D80: No. | E80: 36
A82: 5.2.27 | C82: 110mm x 63mm | D82: No. | E82: 10
A84: 5.2.28 | C84: 110mm x 75mm | D84: No. | E84: 10
A86: 5.2.29 | C86: 110mm x 90mm | D86: No. | E86: 14
A88: 5.2.30 | C88: 160mm x 90mm | D88: No. | E88: 6
A90: 5.2.31 | C90: 160mm x 110mm | D90: No. | E90: 2
A92: 5.2.32 | C92: 200mm x 160mm | D92: No. | E92: 4
C94: Equal Tees (PN16)
A96: 5.2.33 | C96: 50mm x 50mm | D96: No. | E96: 36
A98: 5.2.34 | C98: 63mm x 50mm | D98: No. | E98: 20
A100: 5.2.35 | C100: 63mm x 63mm | D100: No. | E100: 40
A102: 5.2.36 | C102: 75mm x 50mm | D102: No. | E102: 24
A104: 5.2.37 | C104: 75mm x 63mm | D104: No. | E104: 12
A106: 5.2.38 | C106: 75mm x 75mm | D106: No. | E106: 18
A108: 5.2.39 | C108: 90mm x 63mm | D108: No. | E108: 50
A110: 5.2.40 | C110: 90mm x 75mm | D110: No. | E110: 10
A112: 5.2.41 | C112: 90mm x 90mm | D112: No. | E112: 26
A114: 5.2.42 | C114: 110mm x 63mm | D114: No. | E114: 18
A116: 5.2.43 | C116: 110mm x 75mm | D116: No. | E116: 2
A118: 5.2.44 | C118: 110mm x 90mm | D118: No. | E118: 18
A120: 5.2.45 | C120: 110mm x 110mm | D120: No. | E120: 10
A122: Carried Forward
A123: ITEM | B123: PAYMENT | C123: DESCRIPTION | D123: UNIT | E123: QUANTITY | F123: RATE | G123: AMOUNT
A124: Brought Forward
A125: 5.2.46 | C125: 160mm x 63mm | D125: No. | E125: 14
A127: 5.2.47 | C127: 160mm x 90mm | D127: No. | E127: 10
A129: 5.2.47 | C129: 160mm x 90mm | D129: No. | E129: 4
A131: 5.2.48 | C131: 160mm x 110mm | D131: No. | E131: 20
A133: 5.2.49 | C133: 160mm x 160mm | D133: No. | E133: 10
A135: 5.2.50 | C135: 200mm x 110mm | D135: No. | E135: 4
A137: 5.2.51 | C137: 200mm x 200mm | D137: No. | E137: 2
C139: Couplings (PN16)
A141: 5.2.52 | C141: 40mm dia | D141: No. | E141: 16
A143: 5.2.53 | C143: 50mm dia | D143: No. | E143: 20
A145: 5.2.54 | C145: 63mm dia | D145: No. | E145: 24
A147: 5.2.55 | C147: 90mm dia | D147: No. | E147: 32
A149: 5.2.56 | C149: 110mm dia | D149: No. | E149: 14
C151: End Plugs (PN16)
A153: 5.2.57 | C153: 50 mm dia, end plug (Class 16) | D153: No | E153: 24
A155: 5.2.58 | C155: 63 mm dia end plug (Class 16) | D155: No | E155: 2
A157: 5.2.59 | C157: 75 mm dia end plug (Class 16) | D157: No | E157: 2
C159: Flanged Adaptors
A161: 5.2.60 | C161: 50 mm dia - flanged adaptor with galvinised backing ring | D161: No | E161: 26
A163: 5.2.61 | C163: 63 mm dia - Flanged adaptor with galvanised backing ring | D163: No | E163: 16
A165: 5.2.62 | C165: 90 mm dia - Flanged adaptor with galvanised backing ring Flange Table 1600/3" | D165: No | E165: 22
A167: 5.2.63 | C167: Allowance for installation of Bulk Meters at reservoir outlets and DMAs as per Drg Nond_001 | D167: Sum | E167: 2
A168: 5.2.64 | C168: 150mm diameter | D168: No | E168: 1
A170: 5.2.65 | C170: 100mm diameter | D170: No | E170: 3
A171: Total Carried Forward To Summary

Sheet Valves - Section 7
A1: UMGENI - UTHUKELA WATER
A2: NONDABUYA WSS
A3: CONTRACT No.: | B3: SCMU 001/2026/2027
G5: SECTION 7 : VALVES AND CHAMBERS
A7: ITEM | B7: PAYMENT | C7: DESCRIPTION | D7: UNIT | E7: QUANTITY | F7: RATE | G7: AMOUNT
A9: 7 | C9: VALVES
B11: 8.2.3 | C11: Extra-over 8.2.1 for the supplying, fixing and Bedding of Valves as indicated below:
A13: 7.1 | C13: Isolation Valves Complete with Protective Chamber
A15: 7.1.1 | B15: PSL 3.13.2 | C15: Supply and install flanged Resilient seal Gate valves complete with prefabricated valve chamber as per drawing UKDM-0057-05, PN 16 with non-rising spindle, Clockwise closing, including all gaskets, bolts, nuts and washers as per detailed drawings | D15: No.
A17: 7.1.1.1 | C17: 50mm diameter | D17: No. | E17: 9
A19: 7.1.1.2 | C19: 63mm diameter | D19: No. | E19: 3
A21: 7.1.1.3 | C21: 75mm diameter | D21: No. | E21: 8
A23: 7.1.1.4 | C23: 90mm diameter | D23: No. | E23: 10
A25: 7.1.1.5 | C25: 110mm diameter | D25: No. | E25: 6
A27: 7.1.1.6 | C27: 160mm diameter | D27: No. | E27: 2
A29: 7.1.1.7 | C29: 200mm diameter | D29: No. | E29: 3
A31: 7.2 | C31: Air Valves Complete with Protective Chamber
A33: 7.2.1 | B33: 8.2.5 | C33: Supply and install Air Valve assemblies complete with prefabricated chamber as per detailed drawing UKDM-0057-02 (25 mm dia air valve Vent-o-Matt RBX or similar approved) | D33: No. | E33: 65
A35: 7.3 | C35: Scour Valves Complete with Protective Chamber
A37: 7.3.1 | C37: Supply and install Bulk Meter assemblies complete with preacast chamber as per detailed drawing UKDK-0057-03. Rate is inclusive of valve chamber and all specials. | D37: No. | E37: 4
A39: 7.4 | C39: Check / Non Return Valves Complete
B41: 8.2.5 | C41: Supply and install Bulk Meter assemblies complete with preacast chamber as per detailed drawing UKDK-0057-04. Rate is inclusive of valve chamber and all specials.
A43: 7.4.1 | C43: 100mm | D43: No. | E43: 4
A45: 7.4.2 | C45: 150mm | D45: No. | E45: 2
A50: Total Carried Forward To Summary

Sheet Pumpstations - Section 8
A1: UMGENI - UTHUKELA WATER
A2: NONDABUYA WSS
A3: CONTRACT No.: | B3: SCMU 001/2026/2027
G5: SECTION 8 : PUMP STATIONS
A7: ITEM | B7: PAYMENT | C7: DESCRIPTION | D7: UNIT | E7: QUANTITY | F7: RATE | G7: AMOUNT
A8: 8 | C8: PUMP STATIONS
A10: 8.1 | C10: CONSTRUCTION OF ESINGENI RESERVOIR INLET BOOSTER PS
A12: 8.1.1 | C12: Supply equipment & accessories material, remove old equipment, install, test, comissioning for the refurbishment of 2No. 3 phased centrifugal pump with Variable speed drive. Pump Duty to deliver 35L/s flow rate through a 1.3km 200mm ND steel pipeline. Complete pumpset installation with electro-mechanical components, power supply, MCC, DB panels and switchgear, pipe fittings and base frame mountings and other instrumentation assessories as needed and as directed by the Engineer. The tendered rate shall be inclusive of all supplier workshop vendor packaged equipment info, fabrication drawings, relevant tests, O&M manuals and 12 month warrantees required. All materials and workmanship to conform to specifications. Alow for pipe manifold for inlet and outlet into existing pipeline. Pump house inclusive. | D12: Prov Sum | E12: 1 | F12: R1,700,000.00 | G12: R1,700,000.00
A13: 8.1.2 | C13: Contractor's mark up on item 8.1.1 above | D13: % | E13: R1,700,000.00
A19: Total Carried Forward To Summary

Sheet Tanks - Section 9
A1: UMGENI - UTHUKELA WATER
A2: NONDABUYA WSS
A3: CONTRACT No.: | B3: SCMU 001/2026/2027
G5: SECTION 9 : PREFABRICATED STEEL TANKS
A7: ITEM | B7: PAYMENT | C7: DESCRIPTION | D7: UNIT | E7: QUANTITY | F7: RATE | G7: AMOUNT
A9: 9 | C9: PREFABRICATED STEEL TANKS
A11: 9.1 | C11: Storage Tanks (Including inlet/outlet control chamber)
A12: 9.1.2 | B12: SANS 1039 & SANS 121 | C12: Provisional sum for the supply and erection of galvinised mild steel tank and stands or similar approveds with corrosion resistance qualities with handrails, walkway and lighting protection. The pressed steel to conform to SANS 1039:2004 all inclusive and be galvanised to SANS 121 as a minimum.
A14: 9.1.2.1 | C14: Provisional sum for the supply, delivery and erection and assembly of a 250kl Prestank or similar approved pressed steel tank and associated pipework on a 20m Steel Structure, Incl Float Control Valve and elevated walkway and support structure. | D14: No | E14: 2 | F14: R2,000,000.00 | G14: R4,000,000.00
A16: 9.1.2.2 | C16: Contractor's mark up on item 9.1.2.1 above | D16: % | E16: R4,000,000.00
A18: 9.1.2.3 | C18: Provisional sum for the supply, delivery and erection and assembly of a 500kl Prestank or similar approved pressed steel tank and associated pipework on a 20m Steel Structure, Incl Float Control Valve and elevated walkway and support structure. | D18: No | E18: 1 | F18: R4,000,000.00 | G18: R4,000,000.00
A20: 9.1.2.4 | C20: Contractor's mark up on item 9.1.2.3 above | D20: % | E20: R4,000,000.00
A22: 9.2 | C22: Monitoring System
A24: 9.2.1 | C24: Provisional sums fo Implementation of a SCADA system covering reservoir levels, flow monitoring and pressure monitoring | D24: Sum | E24: 1 | F24: R400,000.00 | G24: R400,000.00
A26: 9.2.1.1 | C26: Contractor's mark up on item 9.2.1 above | D26: % | E26: R400,000.00
A28: 9.2.2 | C28: Provisional sum for Automated water balance generation from collected data from flow and pressure | D28: Sum | E28: 1 | F28: R300,000.00 | G28: R300,000.00
A30: 9.2.2.1 | C30: Contractor's mark up on item 9.2.2 above' | D30: % | E30: R300,000.00
A32: 9.3 | B32: SANS 1200 G 8.1.3 | C32: FOUNDATION REINFORCEMENT DETAILS:
A34: 9.3.1 | C34: Mild steel bars:
C36: R8 | D36: kg | E36: 1464
A38: 9.3.2 | C38: High tensile bars:
C40: Y12 | D40: kg | E40: 2981
C42: Y16 | D42: kg | E42: 5184
A44: 9.4 | C44: FOUNDATION CONCRETE DETAILS:
A46: 9.4.1 | B46: 8.4.3 | C46: Strength concrete, Grade 30 MPa/19 mm:
C47: Tank stand | D47: m3 | E47: 270
A49: 9.4.2 | C49: Excavations and formwork preparations for ALL reservoir site pconcrete latforms | D49: No | E49: 18
A51: Total Carried Forward To Summary

Sheet Miscellaneous - Section 10 (hidden)
A1: UMGENI - UTHUKELA WATER
A2: REFURBISHMENT AND AUGMENTATION OF WATER SUPPLY SCHEMES IN WARD 19 & 23 (NEW DEMARCATION) WITHIN JOZINI LM
A3: ='P&G - Section 1'!A3 -> CONTRACT No.:
G5: SECTION 11 : MISCELLANEOUS
A6: ITEM | B6: PAYMENT | C6: DESCRIPTION | D6: UNIT | E6: QTY | F6: RATE | G6: AMOUNT
A7: NO | G7: R
A10: 11 | C10: SECTION 11: MISCELLANEOUS
A12: 11.1 | C12: MISCELLANEOUS ACTIVITIES
C14: Ward 19
A16: 11.1.1 | C16: Allowance for refurbishments and upgrades to the Nondabuya Water Treatment Works | D16: Prov Sum | E16: 1 | F16: R2,500,000.00 | G16: =IF((E16*F16)=0,"Rate Only",(E16*F16)) -> R2,500,000.00
A19: 11.1.2 | C19: Contractors markup on item 11.1.1 | D19: % | E19: =G16 -> R2,500,000.00 | F19: 10% | G19: =IF((E19*F19)=0,"Rate Only",(E19*F19)) -> R250,000.00
A21: 11.1.3 | C21: Establishment of existing water infrastructure, deficiencies, remedial works, fixing, testing, commisssioning and making good including pump station huts renovations, leakage detection and repairs | D21: Prov Sum | E21: 1 | F21: 0 | G21: =IF((E21*F21)=0,"Rate Only",(E21*F21)) -> Rate Only
A23: 11.1.4 | C23: Contractors markup on item 11.1.3 | D23: % | G23: =IF((E23*F23)=0,"Rate Only",(E23*F23)) -> Rate Only
A25: 11.1.5 | C25: Allowance for refurbishments and upgrades to pumps and installation of VSDs at the water treatment works | D25: Prov Sum | E25: 1 | F25: R600,000.00 | G25: =IF((E25*F25)=0,"Rate Only",(E25*F25)) -> R600,000.00
A27: 11.1.6 | C27: Contractors markup on item 11.1.5 | D27: % | E27: =G25 -> R600,000.00 | F27: 10% | G27: =IF((E27*F27)=0,"Rate Only",(E27*F27)) -> R60,000.00
C29: Ward 23
A31: 11.1.7 | C31: Refurbishments and upgrades to the Shemula Water Treatment Works
A33: 11.1.8 | C33: Supply and install new raw water meters suitable for measuring inflow in accordance with SANS 1529-1 standards.
A35: 11.1.8.1 | C35: 200mm | D35: No. | E35: 2 | F35: R5,809.35 | G35: =IF((E35*F35)=0,"Rate Only",(E35*F35)) -> R11,618.70
A37: 11.1.9 | C37: Supply and install new final water meters suitable for measuring inflow in accordance with SANS 1529-1 standards.
A39: 11.1.9.1 | C39: 200mm | D39: No. | E39: 2 | F39: R5,809.35 | G39: =IF((E39*F39)=0,"Rate Only",(E39*F39)) -> R11,618.70
A41: 11.1.10 | C41: Supply and install filter valves in accordance with SANS standards.
A43: 11.1.10.1 | C43: 200mm | D43: No. | E43: 10 | F43: R5,667.00 | G43: =IF((E43*F43)=0,"Rate Only",(E43*F43)) -> R56,670.00
A45: 11.2 | C45: VALVES
A47: 11.2.1 | C47: Air Valves Complete with Protective Chamber
A49: 11.2.1.1 | B49: 8.2.5 | C49: Supply and install Air Valve assemblies complete with prefabricated chamber as per detailed drawings (25 mm dia air valve Vent-o-Matt RBX or similar approved) | D49: No. | E49: 6.0 | F49: R7,500.00 | G49: =IF((E49*F49)=0,"Rate Only",(E49*F49)) -> R45,000.00
A55: Carried Forward | G55: =SUM(G9:G54) -> R3,534,907.40
A56: Brought Forward | G56: =G55 -> R3,534,907.40
A58: 11.2.2 | C58: Pressure Sustaining Valves Complete with Protective Chamber
A60: 11.2.2.1 | C60: Supply and install PSV assemblies complete with prefabricated/ Brick chamber as per detailed drawings (50mm Hydraulically Actuated PRV or similar approved) | D60: No. | E60: 1.0 | F60: R4,500.00 | G60: =IF((E60*F60)=0,"Rate Only",(E60*F60)) -> R4,500.00
A101: Total Carried Forward To Summary | G101: =SUM(G55:G100) -> R7,074,314.80
